[Event "Late-Titled-Tuesday-Blitz-April-23-2024"]
[Site "Chess.com"]
[Date "2024.04.23"]
[Round "5"]
[White "zverr1"]
[Black "Giantgoogachess"]
[Result "1/2-1/2"]
[WhiteElo "2445"]
[BlackElo "2302"]
[TimeControl "180+1"]
[EndTime "14:57:47 PDT"]
[Termination "Game drawn by repetition"]

1. e4 {[%clk 0:02:53.6]} 1... c5 {[%clk 0:02:55.3]} 2. c3 {[%clk 0:02:52]} 2...
g6 {[%clk 0:02:53.6]} 3. d4 {[%clk 0:02:49.2]} 3... cxd4 {[%clk 0:02:54.3]} 4.
cxd4 {[%clk 0:02:50.1]} 4... d5 {[%clk 0:02:54]} 5. e5 {[%clk 0:02:50.2]} 5...
Nc6 {[%clk 0:02:54.3]} 6. Bb5 {[%clk 0:02:49.1]} 6... Bg7 {[%clk 0:02:53.3]} 7.
Nc3 {[%clk 0:02:45.4]} 7... Nh6 {[%clk 0:02:49.6]} 8. h3 {[%clk 0:02:41.9]} 8...
O-O {[%clk 0:02:49.6]} 9. Nf3 {[%clk 0:02:39.7]} 9... f6 {[%clk 0:02:49.7]} 10.
Bxc6 {[%clk 0:02:29.7]} 10... bxc6 {[%clk 0:02:48.7]} 11. O-O {[%clk 0:02:30.6]}
11... Nf7 {[%clk 0:02:47.7]} 12. exf6 {[%clk 0:02:21.7]} 12... exf6 {[%clk
0:02:47.7]} 13. Na4 {[%clk 0:02:10.1]} 13... Rb8 {[%clk 0:02:45.4]} 14. b3
{[%clk 0:02:05.3]} 14... Re8 {[%clk 0:02:34]} 15. Ba3 {[%clk 0:02:05.5]} 15...
Nd6 {[%clk 0:02:33]} 16. Qd3 {[%clk 0:02:02.9]} 16... Bf5 {[%clk 0:02:29]} 17.
Qc3 {[%clk 0:02:01.7]} 17... Nb5 {[%clk 0:02:26.4]} 18. Qc1 {[%clk 0:01:55.7]}
18... Nxa3 {[%clk 0:02:25.9]} 19. Qxa3 {[%clk 0:01:56.6]} 19... Bf8 {[%clk
0:02:26.8]} 20. Qc1 {[%clk 0:01:54]} 20... Qd7 {[%clk 0:02:19.7]} 21. Nc5 {[%clk
0:01:52.3]} 21... Qc8 {[%clk 0:02:17.9]} 22. Qc3 {[%clk 0:01:50.9]} 22... Bd6
{[%clk 0:02:10.4]} 23. Rfe1 {[%clk 0:01:48.6]} 23... g5 {[%clk 0:02:06.6]} 24.
Rxe8+ {[%clk 0:01:43.6]} 24... Qxe8 {[%clk 0:02:06.6]} 25. Re1 {[%clk
0:01:43.1]} 25... Qc8 {[%clk 0:02:07.3]} 26. Qe3 {[%clk 0:01:38.5]} 26... Kf7
{[%clk 0:02:05.7]} 27. Qd2 {[%clk 0:01:11.4]} 27... h5 {[%clk 0:01:43.8]} 28.
Nxg5+ {[%clk 0:00:57.7]} 28... fxg5 {[%clk 0:01:41.7]} 29. Qxg5 {[%clk
0:00:58.6]} 29... Bxc5 {[%clk 0:01:06.9]} 30. dxc5 {[%clk 0:00:59.5]} 30... Qd7
{[%clk 0:01:03.8]} 31. Qxh5+ {[%clk 0:00:56.3]} 31... Bg6 {[%clk 0:01:02.5]} 32.
Qg5 {[%clk 0:00:35.4]} 32... Re8 {[%clk 0:01:00.7]} 33. Re5 {[%clk 0:00:32.4]}
33... Rxe5 {[%clk 0:00:59.6]} 34. Qxe5 {[%clk 0:00:33.3]} 34... Qe7 {[%clk
0:01:00.5]} 35. Qf4+ {[%clk 0:00:32.1]} 35... Kg7 {[%clk 0:00:59.8]} 36. h4
{[%clk 0:00:27.1]} 36... Qxc5 {[%clk 0:00:54.3]} 37. h5 {[%clk 0:00:22.9]} 37...
Bxh5 {[%clk 0:00:50.6]} 38. Qe5+ {[%clk 0:00:23.2]} 38... Kg6 {[%clk 0:00:48.1]}
39. Qe8+ {[%clk 0:00:16.8]} 39... Kh6 {[%clk 0:00:44.9]} 40. Qh8+ {[%clk
0:00:15.8]} 40... Kg5 {[%clk 0:00:44.6]} 41. Qe5+ {[%clk 0:00:16.2]} 41... Kg4
{[%clk 0:00:44.1]} 42. Qe2+ {[%clk 0:00:07.4]} 42... Kh4 {[%clk 0:00:42.5]} 43.
g3+ {[%clk 0:00:07.1]} 43... Kg5 {[%clk 0:00:41.1]} 44. Qe5+ {[%clk 0:00:07.5]}
44... Kg6 {[%clk 0:00:39.8]} 45. Qe8+ {[%clk 0:00:07.8]} 45... Kh6 {[%clk
0:00:39.5]} 46. Qh8+ {[%clk 0:00:08.1]} 46... Kg5 {[%clk 0:00:36.4]} 47. Qe5+
{[%clk 0:00:08.6]} 47... Kg6 {[%clk 0:00:32.1]} 48. Qe8+ {[%clk 0:00:08.2]}
48... Kf6 {[%clk 0:00:30.8]} 49. Qxh5 {[%clk 0:00:08.1]} 49... Qc1+ {[%clk
0:00:30.5]} 50. Kg2 {[%clk 0:00:08.7]} 50... Qc2 {[%clk 0:00:29.4]} 51. Qh6+
{[%clk 0:00:07.7]} 51... Ke5 {[%clk 0:00:29.6]} 52. Qf4+ {[%clk 0:00:07.1]}
52... Ke6 {[%clk 0:00:30]} 53. Qe3+ {[%clk 0:00:07.7]} 53... Kd6 {[%clk
0:00:29.9]} 54. Qxa7 {[%clk 0:00:08.3]} 54... Qe4+ {[%clk 0:00:30.6]} 55. Kg1
{[%clk 0:00:08.6]} 55... Qe1+ {[%clk 0:00:30.8]} 56. Kh2 {[%clk 0:00:08.3]}
56... Qe4 {[%clk 0:00:29.8]} 57. Qb8+ {[%clk 0:00:08.2]} 57... Kc5 {[%clk
0:00:30.3]} 58. Qa7+ {[%clk 0:00:08.4]} 58... Kd6 {[%clk 0:00:30.4]} 59. Qb8+
{[%clk 0:00:07.3]} 59... Kd7 {[%clk 0:00:29]} 60. Qb7+ {[%clk 0:00:07.2]} 60...
Kd6 {[%clk 0:00:29.2]} 61. Qb6 {[%clk 0:00:05.9]} 61... Qh7+ {[%clk 0:00:28]}
62. Kg1 {[%clk 0:00:05.3]} 62... Qb1+ {[%clk 0:00:27.8]} 63. Kg2 {[%clk
0:00:05.9]} 63... Qe4+ {[%clk 0:00:28.4]} 64. Kh2 {[%clk 0:00:06.1]} 64... d4
{[%clk 0:00:29.1]} 65. Qd8+ {[%clk 0:00:05.7]} 65... Kc5 {[%clk 0:00:29.2]} 66.
Qa5+ {[%clk 0:00:05.8]} 66... Kd6 {[%clk 0:00:29.7]} 67. Qd8+ {[%clk 0:00:06.4]}
67... Ke5 {[%clk 0:00:27.7]} 68. Qe7+ {[%clk 0:00:06]} 68... Kf5 {[%clk
0:00:28.2]} 69. Qh7+ {[%clk 0:00:06]} 69... Ke5 {[%clk 0:00:28.3]} 70. Qe7+
{[%clk 0:00:06.7]} 70... Kd5 {[%clk 0:00:28.6]} 71. Qd8+ {[%clk 0:00:06.3]}
71... Kc5 {[%clk 0:00:28.6]} 72. Qa5+ {[%clk 0:00:06.9]} 72... Kd6 {[%clk
0:00:28.8]} 73. Qd8+ {[%clk 0:00:07.5]} 1/2-1/2

[Event "Late-Titled-Tuesday-Blitz-April-23-2024"]
[Site "Chess.com"]
[Date "2024.04.23"]
[Round "5"]
[White "Harsha_Bharathakoti"]
[Black "manitodeplomo"]
[Result "1-0"]
[WhiteElo "2914"]
[BlackElo "2663"]
[TimeControl "180+1"]
[EndTime "14:57:59 PDT"]
[Termination "Harsha_Bharathakoti won on time"]

1. c4 {[%clk 0:02:12.3]} 1... g6 {[%clk 0:02:58.6]} 2. Nc3 {[%clk 0:02:12.4]}
2... Bg7 {[%clk 0:02:59.4]} 3. d4 {[%clk 0:02:13.1]} 3... d6 {[%clk 0:02:58.2]}
4. e4 {[%clk 0:02:13.4]} 4... Nf6 {[%clk 0:02:58.5]} 5. Be2 {[%clk 0:02:13.7]}
5... O-O {[%clk 0:02:58.5]} 6. Bg5 {[%clk 0:02:14]} 6... a6 {[%clk 0:02:54.8]}
7. Nf3 {[%clk 0:02:12.9]} 7... c5 {[%clk 0:02:55.2]} 8. O-O {[%clk 0:02:11.8]}
8... h6 {[%clk 0:02:48.5]} 9. Be3 {[%clk 0:02:05]} 9... Ng4 {[%clk 0:02:47.8]}
10. Bc1 {[%clk 0:02:05.4]} 10... Nc6 {[%clk 0:02:36]} 11. d5 {[%clk 0:02:05.5]}
11... Na5 {[%clk 0:02:35.5]} 12. h3 {[%clk 0:02:03]} 12... Nf6 {[%clk
0:02:34.7]} 13. Bd2 {[%clk 0:01:54]} 13... e5 {[%clk 0:02:34.3]} 14. a3 {[%clk
0:01:49.6]} 14... b6 {[%clk 0:02:30.3]} 15. b4 {[%clk 0:01:49.6]} 15... Nb7
{[%clk 0:02:30.2]} 16. Rb1 {[%clk 0:01:41.3]} 16... Bd7 {[%clk 0:02:24.8]} 17.
Qc1 {[%clk 0:01:37.7]} 17... Kh7 {[%clk 0:02:23.6]} 18. Ne1 {[%clk 0:01:37.5]}
18... Qc7 {[%clk 0:02:05.6]} 19. Nd3 {[%clk 0:01:33.4]} 19... cxb4 {[%clk
0:01:52.9]} 20. axb4 {[%clk 0:01:27.4]} 20... a5 {[%clk 0:01:52.4]} 21. Be3
{[%clk 0:01:03.4]} 21... axb4 {[%clk 0:01:47.5]} 22. Rxb4 {[%clk 0:01:04.3]}
22... Nc5 {[%clk 0:01:46.9]} 23. Nxc5 {[%clk 0:00:34.9]} 23... bxc5 {[%clk
0:01:45.1]} 24. Rb2 {[%clk 0:00:35.8]} 24... Rfb8 {[%clk 0:01:42.8]} 25. Qc2
{[%clk 0:00:36.2]} 25... Rxb2 {[%clk 0:01:42.4]} 26. Qxb2 {[%clk 0:00:37.1]}
26... Rb8 {[%clk 0:01:42.4]} 27. Qa2 {[%clk 0:00:37.5]} 27... h5 {[%clk
0:01:37.6]} 28. Bg5 {[%clk 0:00:33.6]} 28... Ng8 {[%clk 0:01:32.6]} 29. Nb5
{[%clk 0:00:34]} 29... Bxb5 {[%clk 0:01:31.9]} 30. cxb5 {[%clk 0:00:34.9]} 30...
Bh6 {[%clk 0:01:31.9]} 31. Bxh6 {[%clk 0:00:35.2]} 31... Kxh6 {[%clk 0:01:26.9]}
32. Ra1 {[%clk 0:00:35.8]} 32... Nf6 {[%clk 0:01:24.7]} 33. Bd3 {[%clk
0:00:33.8]} 33... Kg7 {[%clk 0:01:23.9]} 34. Qa6 {[%clk 0:00:33.3]} 34... Nd7
{[%clk 0:01:22.8]} 35. Qc6 {[%clk 0:00:33.4]} 35... Qd8 {[%clk 0:01:09.7]} 36.
Ra7 {[%clk 0:00:27.9]} 36... Nb6 {[%clk 0:01:06.3]} 37. h4 {[%clk 0:00:26.2]}
37... Nc8 {[%clk 0:00:40.7]} 38. Rc7 {[%clk 0:00:10.9]} 38... Ne7 {[%clk
0:00:25.3]} 39. Qd7 {[%clk 0:00:09.9]} 39... Qxd7 {[%clk 0:00:25.1]} 40. Rxd7
{[%clk 0:00:10.8]} 40... Nc8 {[%clk 0:00:25.3]} 41. Rd8 {[%clk 0:00:07.4]} 41...
Kf6 {[%clk 0:00:23.2]} 42. b6 {[%clk 0:00:07.2]} 42... Ke7 {[%clk 0:00:23.2]}
43. Rh8 {[%clk 0:00:07.4]} 43... Rxb6 {[%clk 0:00:05.3]} 44. Rxc8 {[%clk
0:00:07]} 44... Rb4 {[%clk 0:00:05.6]} 45. Rc7+ {[%clk 0:00:05.4]} 45... Kf8
{[%clk 0:00:04.7]} 46. Rd7 {[%clk 0:00:05]} 46... Rb6 {[%clk 0:00:04.4]} 47. g3
{[%clk 0:00:04.5]} 47... Ke8 {[%clk 0:00:04.7]} 48. Rc7 {[%clk 0:00:04.8]} 48...
Kf8 {[%clk 0:00:04]} 49. Kg2 {[%clk 0:00:04.8]} 49... Rb3 {[%clk 0:00:03.9]} 50.
Ba6 {[%clk 0:00:03.2]} 50... Ra3 {[%clk 0:00:03.9]} 51. Bb5 {[%clk 0:00:03.1]}
51... Rb3 {[%clk 0:00:03.8]} 52. Bc6 {[%clk 0:00:03.2]} 52... Rb4 {[%clk
0:00:04.4]} 53. Rd7 {[%clk 0:00:02.7]} 53... Rxe4 {[%clk 0:00:04.5]} 54. Rxd6
{[%clk 0:00:03.3]} 54... Rd4 {[%clk 0:00:05.3]} 55. Rd8+ {[%clk 0:00:03.8]}
55... Ke7 {[%clk 0:00:05.3]} 56. Rd7+ {[%clk 0:00:04.5]} 56... Kf6 {[%clk
0:00:05.5]} 57. Rc7 {[%clk 0:00:04.8]} 57... e4 {[%clk 0:00:05.4]} 58. Be8
{[%clk 0:00:04.8]} 58... Rd2 {[%clk 0:00:05.3]} 59. Rxf7+ {[%clk 0:00:05.3]}
59... Ke5 {[%clk 0:00:05.9]} 60. Bc6 {[%clk 0:00:03.3]} 60... Kd6 {[%clk
0:00:02.8]} 61. Rf6+ {[%clk 0:00:03.5]} 61... Kc7 {[%clk 0:00:03.1]} 62. Rxg6
{[%clk 0:00:02.6]} 62... e3 {[%clk 0:00:03.5]} 63. Kf1 {[%clk 0:00:02.1]} 63...
Rxf2+ {[%clk 0:00:03.3]} 64. Ke1 {[%clk 0:00:02.9]} 64... c4 {[%clk 0:00:04.1]}
65. Bb5 {[%clk 0:00:02.6]} 65... Rf3 {[%clk 0:00:04.1]} 66. d6+ {[%clk
0:00:03.1]} 66... Kb6 {[%clk 0:00:04.2]} 67. d7+ {[%clk 0:00:03.7]} 67... Kc7
{[%clk 0:00:04.9]} 68. Rc6+ {[%clk 0:00:03.8]} 68... Kxd7 {[%clk 0:00:04.7]} 69.
Rf6+ {[%clk 0:00:04.5]} 69... Ke7 {[%clk 0:00:04.8]} 70. Rxf3 {[%clk 0:00:05.4]}
1-0

[Event "Late-Titled-Tuesday-Blitz-April-23-2024"]
[Site "Chess.com"]
[Date "2024.04.23"]
[Round "5"]
[White "Noki102"]
[Black "finec2"]
[Result "1/2-1/2"]
[WhiteElo "2516"]
[BlackElo "2237"]
[TimeControl "180+1"]
[EndTime "14:58:01 PDT"]
[Termination "Game drawn by repetition"]

1. d4 {[%clk 0:03:00.2]} 1... Nf6 {[%clk 0:02:59.3]} 2. Nc3 {[%clk 0:03:00.3]}
2... d5 {[%clk 0:02:58.2]} 3. Bf4 {[%clk 0:03:00]} 3... a6 {[%clk 0:02:58.1]} 4.
e3 {[%clk 0:02:58.7]} 4... Bf5 {[%clk 0:02:57.7]} 5. a3 {[%clk 0:02:56.1]} 5...
h6 {[%clk 0:02:50.9]} 6. Nf3 {[%clk 0:02:55]} 6... e6 {[%clk 0:02:50.3]} 7. b4
{[%clk 0:02:53.8]} 7... Nbd7 {[%clk 0:02:48.7]} 8. Bd3 {[%clk 0:02:51]} 8...
Bxd3 {[%clk 0:02:47.9]} 9. Qxd3 {[%clk 0:02:50.4]} 9... Bd6 {[%clk 0:02:46.9]}
10. O-O {[%clk 0:02:48.4]} 10... Bxf4 {[%clk 0:02:46.1]} 11. exf4 {[%clk
0:02:48.4]} 11... O-O {[%clk 0:02:32.5]} 12. Rfe1 {[%clk 0:02:47.4]} 12... Re8
{[%clk 0:02:29.8]} 13. Ne5 {[%clk 0:02:47]} 13... a5 {[%clk 0:02:03.8]} 14. b5
{[%clk 0:02:41.9]} 14... Nb6 {[%clk 0:02:00.8]} 15. Re3 {[%clk 0:02:32]} 15...
Nfd7 {[%clk 0:01:57.4]} 16. Rg3 {[%clk 0:02:26.4]} 16... Nxe5 {[%clk 0:01:43.6]}
17. fxe5 {[%clk 0:02:25.9]} 17... Qh4 {[%clk 0:01:35.9]} 18. Ne2 {[%clk
0:02:22.4]} 18... Nc4 {[%clk 0:01:32.9]} 19. f3 {[%clk 0:02:03.5]} 19... c5
{[%clk 0:01:25.4]} 20. Rg4 {[%clk 0:01:47.2]} 20... Qe7 {[%clk 0:01:04.2]} 21.
Nf4 {[%clk 0:01:41.7]} 21... Kh8 {[%clk 0:00:41.5]} 22. Nh5 {[%clk 0:01:34]}
22... Rg8 {[%clk 0:00:40.8]} 23. f4 {[%clk 0:01:24]} 23... cxd4 {[%clk
0:00:39.2]} 24. Qg3 {[%clk 0:01:22.5]} 24... f5 {[%clk 0:00:25.2]} 25. exf6
{[%clk 0:01:13.5]} 25... gxf6 {[%clk 0:00:24.6]} 26. Rg6 {[%clk 0:01:09.8]}
26... Kh7 {[%clk 0:00:21.4]} 27. f5 {[%clk 0:01:07.3]} 27... exf5 {[%clk
0:00:17]} 28. Nxf6+ {[%clk 0:01:03.1]} 28... Qxf6 {[%clk 0:00:14.6]} 29. Rxf6
{[%clk 0:01:04]} 29... Rxg3 {[%clk 0:00:14.9]} 30. hxg3 {[%clk 0:01:04.9]} 30...
Ne3 {[%clk 0:00:14.9]} 31. Rd1 {[%clk 0:00:59.1]} 31... Nxd1 {[%clk 0:00:14.7]}
32. Rxf5 {[%clk 0:00:58]} 32... Ne3 {[%clk 0:00:12.4]} 33. Rf7+ {[%clk
0:00:54.8]} 33... Kg6 {[%clk 0:00:13]} 34. Rc7 {[%clk 0:00:55.7]} 34... Nxc2
{[%clk 0:00:13]} 35. Rxc2 {[%clk 0:00:55.7]} 35... Re8 {[%clk 0:00:11.9]} 36.
Rd2 {[%clk 0:00:54.4]} 36... Re4 {[%clk 0:00:12.1]} 37. Kf2 {[%clk 0:00:53.7]}
37... Kf6 {[%clk 0:00:12.4]} 38. a4 {[%clk 0:00:47.4]} 38... Ke6 {[%clk
0:00:12.4]} 39. Rc2 {[%clk 0:00:45.7]} 39... Kd6 {[%clk 0:00:12.9]} 40. Rc1
{[%clk 0:00:41.7]} 40... Re3 {[%clk 0:00:13.1]} 41. Rc8 {[%clk 0:00:39.2]} 41...
Rc3 {[%clk 0:00:13]} 42. Rh8 {[%clk 0:00:36]} 42... Kc5 {[%clk 0:00:12.8]} 43.
Rxh6 {[%clk 0:00:34.9]} 43... d3 {[%clk 0:00:12.5]} 44. Rh1 {[%clk 0:00:32.8]}
44... d4 {[%clk 0:00:12.2]} 45. g4 {[%clk 0:00:32.4]} 45... Kb4 {[%clk
0:00:11.6]} 46. Rb1+ {[%clk 0:00:29.6]} 46... Kxa4 {[%clk 0:00:11.5]} 47. g5
{[%clk 0:00:29]} 47... Rc5 {[%clk 0:00:11.8]} 48. Rd1 {[%clk 0:00:25.2]} 48...
Rxg5 {[%clk 0:00:11.3]} 49. Rxd3 {[%clk 0:00:25.7]} 49... Rd5 {[%clk 0:00:10.6]}
50. b6 {[%clk 0:00:22.1]} 50... Kb5 {[%clk 0:00:10.8]} 51. Rb3+ {[%clk
0:00:13.9]} 51... Kc6 {[%clk 0:00:10.4]} 52. Rb1 {[%clk 0:00:12.7]} 52... d3
{[%clk 0:00:10.4]} 53. Ke1 {[%clk 0:00:09.7]} 53... d2+ {[%clk 0:00:10.6]} 54.
Kd1 {[%clk 0:00:09.9]} 54... Rg5 {[%clk 0:00:09.2]} 55. g4 {[%clk 0:00:06.8]}
55... Rxg4 {[%clk 0:00:08.9]} 56. Kxd2 {[%clk 0:00:07.4]} 56... Rg2+ {[%clk
0:00:09]} 57. Kc3 {[%clk 0:00:07.4]} 57... Rg3+ {[%clk 0:00:09.1]} 58. Kc4
{[%clk 0:00:07.7]} 58... Rg4+ {[%clk 0:00:09.4]} 59. Kc3 {[%clk 0:00:08.1]}
59... Rg5 {[%clk 0:00:08.1]} 60. Kd4 {[%clk 0:00:07.8]} 60... Rb5 {[%clk
0:00:08]} 61. Rg1 {[%clk 0:00:07.5]} 61... Kxb6 {[%clk 0:00:08.2]} 62. Rg6+
{[%clk 0:00:08.2]} 62... Ka7 {[%clk 0:00:07.4]} 63. Kc4 {[%clk 0:00:09.1]} 63...
Rb6 {[%clk 0:00:07.4]} 64. Rg8 {[%clk 0:00:08.6]} 64... Rc6+ {[%clk 0:00:07.4]}
65. Kb5 {[%clk 0:00:08.7]} 65... Rb6+ {[%clk 0:00:07.3]} 66. Kxa5 {[%clk
0:00:08.7]} 66... Rh6 {[%clk 0:00:05.4]} 67. Kb5 {[%clk 0:00:08.9]} 67... Rh5+
{[%clk 0:00:05.4]} 68. Kb4 {[%clk 0:00:09.5]} 68... Rh4+ {[%clk 0:00:05.9]} 69.
Kb5 {[%clk 0:00:10]} 69... Rh5+ {[%clk 0:00:06.5]} 70. Kb4 {[%clk 0:00:10.7]}
70... Rh4+ {[%clk 0:00:07.1]} 71. Kb5 {[%clk 0:00:11.4]} 71... Rh5+ {[%clk
0:00:07.6]} 1/2-1/2

[Event "Late-Titled-Tuesday-Blitz-April-23-2024"]
[Site "Chess.com"]
[Date "2024.04.23"]
[Round "5"]
[White "nindjaxx8"]
[Black "ploxoi"]
[Result "1/2-1/2"]
[WhiteElo "2639"]
[BlackElo "2421"]
[TimeControl "180+1"]
[EndTime "14:58:02 PDT"]
[Termination "Game drawn - insufficient material"]

1. d4 {[%clk 0:02:53.5]} 1... d5 {[%clk 0:02:58.5]} 2. c4 {[%clk 0:02:52.9]}
2... e6 {[%clk 0:02:58.3]} 3. Nc3 {[%clk 0:02:52.6]} 3... c6 {[%clk 0:02:58.3]}
4. cxd5 {[%clk 0:02:52.7]} 4... exd5 {[%clk 0:02:58.2]} 5. Bf4 {[%clk
0:02:53.4]} 5... Bf5 {[%clk 0:02:56.2]} 6. e3 {[%clk 0:02:53.7]} 6... Nf6 {[%clk
0:02:54.2]} 7. Nf3 {[%clk 0:02:53.6]} 7... Bd6 {[%clk 0:02:54.2]} 8. Bg3 {[%clk
0:02:50.8]} 8... O-O {[%clk 0:02:47.1]} 9. Bd3 {[%clk 0:02:49.3]} 9... Bg6
{[%clk 0:02:46.4]} 10. O-O {[%clk 0:02:49.3]} 10... Bxg3 {[%clk 0:02:45.3]} 11.
hxg3 {[%clk 0:02:49]} 11... Nbd7 {[%clk 0:02:38.3]} 12. Rb1 {[%clk 0:02:36.6]}
12... Re8 {[%clk 0:02:38]} 13. b4 {[%clk 0:02:36.6]} 13... Ne4 {[%clk
0:02:34.8]} 14. Qc2 {[%clk 0:02:35.1]} 14... a6 {[%clk 0:02:31.4]} 15. Ne2
{[%clk 0:02:30.6]} 15... Ndf6 {[%clk 0:02:20]} 16. Ne5 {[%clk 0:01:59.2]} 16...
Bf5 {[%clk 0:02:10.1]} 17. a4 {[%clk 0:01:55.9]} 17... Bd7 {[%clk 0:01:56.7]}
18. b5 {[%clk 0:01:47.8]} 18... axb5 {[%clk 0:01:54.7]} 19. axb5 {[%clk
0:01:48.7]} 19... cxb5 {[%clk 0:01:54]} 20. Bxb5 {[%clk 0:01:48.8]} 20... Bxb5
{[%clk 0:01:51.2]} 21. Rxb5 {[%clk 0:01:49.7]} 21... Qe7 {[%clk 0:01:38.1]} 22.
Rfb1 {[%clk 0:01:44]} 22... Rab8 {[%clk 0:01:22.8]} 23. Nf4 {[%clk 0:01:05.9]}
23... Rec8 {[%clk 0:01:12.6]} 24. Qb2 {[%clk 0:00:47.5]} 24... Rc7 {[%clk
0:00:24]} 25. Rc1 {[%clk 0:00:40.2]} 25... Rxc1+ {[%clk 0:00:22.6]} 26. Qxc1
{[%clk 0:00:41.1]} 26... Qd8 {[%clk 0:00:19]} 27. Qb2 {[%clk 0:00:36.6]} 27...
Nd6 {[%clk 0:00:18.4]} 28. Rb4 {[%clk 0:00:31.7]} 28... Qc7 {[%clk 0:00:17.6]}
29. f3 {[%clk 0:00:28.7]} 29... b5 {[%clk 0:00:17.3]} 30. Qb3 {[%clk 0:00:25.7]}
30... Qb7 {[%clk 0:00:15.7]} 31. g4 {[%clk 0:00:21.4]} 31... Nc4 {[%clk
0:00:15.3]} 32. g5 {[%clk 0:00:20.3]} 32... Nd7 {[%clk 0:00:14]} 33. Nfd3 {[%clk
0:00:13]} 33... Ndxe5 {[%clk 0:00:10.6]} 34. Nxe5 {[%clk 0:00:11]} 34... Qc7
{[%clk 0:00:05.4]} 35. Nxc4 {[%clk 0:00:04.7]} 35... dxc4 {[%clk 0:00:05.7]} 36.
Qb2 {[%clk 0:00:02.8]} 36... g6 {[%clk 0:00:06.2]} 37. Rxb5 {[%clk 0:00:02.9]}
37... Rxb5 {[%clk 0:00:06]} 38. Qxb5 {[%clk 0:00:03.7]} 38... c3 {[%clk
0:00:06.9]} 39. Qf1 {[%clk 0:00:03.5]} 39... c2 {[%clk 0:00:07.2]} 40. Qc1
{[%clk 0:00:04.2]} 40... Qc3 {[%clk 0:00:07.5]} 41. Kf2 {[%clk 0:00:04.7]} 41...
Qd3 {[%clk 0:00:07.5]} 42. Ke1 {[%clk 0:00:05.3]} 42... Qc3+ {[%clk 0:00:07.2]}
43. Ke2 {[%clk 0:00:05.5]} 43... Kg7 {[%clk 0:00:07]} 44. d5 {[%clk 0:00:05.5]}
44... Kf8 {[%clk 0:00:07.1]} 45. e4 {[%clk 0:00:05.9]} 45... Ke7 {[%clk
0:00:07.3]} 46. g3 {[%clk 0:00:05.9]} 46... Kd6 {[%clk 0:00:07.2]} 47. Qf4+
{[%clk 0:00:06]} 47... Ke7 {[%clk 0:00:06.2]} 48. Qc1 {[%clk 0:00:05.7]} 48...
Kd6 {[%clk 0:00:06.1]} 49. Qf4+ {[%clk 0:00:05.7]} 49... Kc5 {[%clk 0:00:06.7]}
50. Qc1 {[%clk 0:00:04.7]} 50... Kb4 {[%clk 0:00:06.5]} 51. d6 {[%clk
0:00:04.9]} 51... Kb3 {[%clk 0:00:04.2]} 52. d7 {[%clk 0:00:04.8]} 52... Qc4+
{[%clk 0:00:04.7]} 53. Ke1 {[%clk 0:00:03.4]} 53... Qc3+ {[%clk 0:00:04.6]} 54.
Ke2 {[%clk 0:00:03.3]} 54... Qc4+ {[%clk 0:00:04.6]} 55. Ke1 {[%clk 0:00:03.7]}
55... Qd4 {[%clk 0:00:04.4]} 56. Qd2 {[%clk 0:00:03.7]} 56... Qxd7 {[%clk
0:00:03.3]} 57. Qxd7 {[%clk 0:00:03.6]} 57... c1=Q+ {[%clk 0:00:03.6]} 58. Ke2
{[%clk 0:00:04.1]} 58... Qc5 {[%clk 0:00:02.1]} 59. Qd3+ {[%clk 0:00:04.3]}
59... Kb4 {[%clk 0:00:02.6]} 60. f4 {[%clk 0:00:04.3]} 60... Qc1 {[%clk
0:00:02.9]} 61. Qd2+ {[%clk 0:00:03.8]} 61... Qxd2+ {[%clk 0:00:03.5]} 62. Kxd2
{[%clk 0:00:04.7]} 62... Kc4 {[%clk 0:00:04.3]} 63. Ke3 {[%clk 0:00:05.2]} 63...
Kc3 {[%clk 0:00:05.1]} 64. e5 {[%clk 0:00:05.3]} 64... Kc4 {[%clk 0:00:05.7]}
65. Ke4 {[%clk 0:00:05.9]} 65... Kc5 {[%clk 0:00:06.1]} 66. f5 {[%clk 0:00:05]}
66... gxf5+ {[%clk 0:00:04.5]} 67. Kxf5 {[%clk 0:00:05.9]} 67... Kd5 {[%clk
0:00:04.7]} 68. Kf6 {[%clk 0:00:06.5]} 68... Ke4 {[%clk 0:00:05.1]} 69. g4
{[%clk 0:00:02.6]} 69... Kf4 {[%clk 0:00:05.2]} 70. Kg7 {[%clk 0:00:03.1]} 70...
Kxe5 {[%clk 0:00:04.5]} 71. Kxh7 {[%clk 0:00:02.4]} 71... Kf4 {[%clk 0:00:05]}
72. Kh6 {[%clk 0:00:01.5]} 72... Kxg4 {[%clk 0:00:05.4]} 73. Kg7 {[%clk
0:00:02.1]} 73... Kxg5 {[%clk 0:00:05.4]} 74. Kxf7 {[%clk 0:00:03]} 1/2-1/2